Cogmind - Beta 13 @@@ ROGUE MODE // 2024.03.31 @ 16:23:35 Player: SLUGGY Result: Destroyed by Y-45 Defender with Heavy Assault Rifle Performance ------------- Evolutions (1) 500 Regions Visited (3) 600 Robots Destroyed (91) 455 Value Destroyed (1561) 1561 Prototype IDs (4) 80 Alien Tech Used (0) 0 Bonus (32) 32 TOTAL SCORE: 3228 Bonus ------- High Alert Combat Kills 46 Friendly Fire -14 Cogmind --------- Core Integrity 0/400 Matter 244/300 Energy 100/100 System Corruption 2% Temperature Cool (0) Movement Core (250) Ox4 Location -9/Materials Parts ------- > --- POWER (1) -------- (None) > --- PROPULSION (2) --- (None) > --- UTILITY (4) ------ Medium Storage Unit Signal Interpreter > --- WEAPON (2) ------- Maul > --- INVENTORY (10) --- Improved Aluminum Leg Improved Aluminum Leg Improved EM Shotgun Improved EM Shotgun Improved EM Shotgun Datajack Peak State ------------ > --- POWER ------------ Improved Ion Engine > --- PROPULSION ------- Improved Flight Unit Improved Flight Unit > --- UTILITY ---------- Heat Sink Medium Storage Unit Signal Interpreter Light Armor Plating > --- WEAPON ----------- Improved EM Shotgun Maul > --- INVENTORY -------- Improved Aluminum Leg Improved Aluminum Leg Improved Aluminum Leg Improved Aluminum Leg Improved EM Shotgun Improved EM Shotgun EMP Blaster Datajack [Rating: 18] Favorites ----------- Power Ion Engine Engine Ion Engine Propulsion Improved Aluminum Leg Treads Light Treads Leg Improved Aluminum Leg Flight Unit Improved Flight Unit Utility Medium Storage Unit Device Heat Sink Storage Medium Storage Unit Processor Signal Interpreter Protection Core Shielding Weapon Mining Claw Energy Gun Particle Gun Energy Cannon Advanced Beam Cannon Ballistic Gun Heavy Assault Rifle Launcher EMP Blaster Impact Weapon Maul Slashing Weapon Mining Claw Build | -11 -10 -10 -9 ------- Run | Yrd Mat Min Mat Slots Evolved 2 | . . . 2 Power . | . . . . Propulsion . | . . . . Utility 2 | . . . 2 Weapon . | . . . . Parts Attached 80 | 6 22 4 48 Power 6 | 1 1 . 4 Engine 6 | 1 1 . 4 Core . | . . . . Reactor . | . . . . Propulsion 24 | 2 7 1 14 Treads 2 | 2 . . . Leg 18 | . 5 1 12 Wheel . | . . . . Hover . | . . . . Flight 4 | . 2 . 2 Utility 17 | 1 7 . 9 Device 5 | . 2 . 3 Storage 5 | 1 3 . 1 Processor 2 | . . . 2 Hackware . | . . . . Protection 5 | . 2 . 3 Artifact . | . . . . Weapon 33 | 2 7 3 21 Energy Gun 11 | 1 6 1 3 Energy Cannon 1 | . . . 1 Ballistic Gun 5 | 1 . 1 3 Ballistic Cannon . | . . . . Launcher 7 | . . 1 6 Special Weapon . | . . . . Impact Weapon 5 | . . . 5 Slashing Weapon 4 | . 1 . 3 Piercing Weapon . | . . . . Special Melee Weapon . | . . . . Unidentified Prototypes 4 | . . . 4 Parts Lost 17 | . . 2 15 Power 3 | . . . 3 Propulsion 4 | . . . 4 Utility 6 | . . . 6 Weapon 4 | . . 2 2 Highest Loss Streak 5 | . . 2 5 To Critical Strikes 1 | . . . 1 Average Slot Usage (%) 95 | . 94 98 95 Engine 12 | . 14 14 10 Treads 2 | . 6 . . Leg 21 | . 21 28 21 Device 3 | . 2 . 4 Storage 11 | . 12 14 10 Processor 6 | . . . 13 Protection 10 | . 7 14 12 Energy Gun 8 | . 16 . 5 Energy Cannon 1 | . . . 2 Ballistic Gun 3 | . 3 11 1 Launcher 1 | . . 1 2 Impact Weapon 3 | . . . 6 Slashing Weapon 6 | . 7 14 3 Naked Turns . | . . . . Heaviest Build 29 | 12 20 21 29 Greatest Support 40 | 40 40 28 28 Greatest Overweight (x) 8 | . . . 8 Average Overweight (x) . | . . . . Largest Inventory Capacity 10 | 8 10 10 10 Average Capacity 9 | 7 8 10 9 Most Carried 10 | 4 9 10 8 Average Carried 5 | 2 5 7 5 Final Capacity 10 | 8 10 10 10 Final Carried 8 | 4 7 8 6 Class Distribution -------------------- 65% | Mutant 34% | Scavenger-Mutant Dominant Class ---------------- Mutant | -10/Materials Mutant | -10/Mines Scavenger-Mutant | -9/Materials Resources | -11 -10 -10 -9 ----------- Run | Yrd Mat Min Mat Matter Collected 1385 | 78 513 100 694 Remotely . | . . . . Salvage Created 2974 | 78 731 111 2054 Parts 195 | 3 41 18 133 Haulers Intercepted 5 | . 1 . 4 Recyclers Shooed 6 | . 3 . 3 Parts Field Recycled . | . . . . Retrieved Matter . | . . . . Parts Self-Destructed . | . . . . Prevented . | . . . . Kills | -11 -10 -10 -9 ------- Run | Yrd Mat Min Mat Combat Hostiles Destroyed 41 | . 10 6 25 Melee 5 | . . . 5 Guns 24 | . 10 6 8 Cannons 2 | . . . 2 AOE 8 | . . . 8 Classes Destroyed 11 | 1 5 2 3 Worker 16 | . 1 . 15 Builder 8 | . . 1 7 Tunneler 4 | . . 1 3 Hauler 5 | . 1 . 4 Recycler 9 | 1 4 . 4 Operator 1 | . . . 1 Watcher 7 | . 3 . 4 Swarmer 12 | . 3 6 3 Grunt 21 | . 7 . 14 Duelist 1 | . . . 1 Sentry 7 | . . . 7 Best Kill Streak 7 | 1 5 4 7 Combat Bots Only 4 | . 4 3 4 Max Kills in Single Turn 2 | 1 1 1 2 Gunslinging . | . . . . Exploded 1 | . . . 1 Melee 1 | . . . 1 Uniques/NPCs Destroyed . | . . . . Combat | -11 -10 -10 -9 -------- Run | Yrd Mat Min Mat Hostile Shots Fired 284 | . 58 54 172 Missed 83 | . 20 18 45 Damage Taken 2736 | . 458 366 1912 Core 579 | . 91 84 404 Absorbed by Shields . | . . . . Redirected to Shielding 133 | . . 16 117 Core Remaining (%) 65 | 100 . 30 . Volleys Fired 246 | 2 69 34 141 Largest 2 | 2 2 1 2 Hottest 115 | 70 115 40 95 Shots Fired 310 | 4 118 34 154 Gun 233 | 4 118 28 83 Cannon 37 | . . . 37 Launcher 40 | . . 6 34 Special . | . . . . Kinetic 88 | 2 46 20 20 Thermal 130 | 2 59 . 69 Explosive 16 | . . 6 10 Electromagnetic 76 | . 13 8 55 Robot Hit Streak 17 | 3 17 5 11 Robot Miss Streak 6 | . 6 6 5 Penetration Max . | . . . . Secondary Targets 1 | . 1 . . Max Gunslinging Chain 1 | . 1 . . Shots Hit Robots 213 | 3 73 18 119 Core Hits 121 | 2 30 10 79 Critical Kills 1 | . . . 1 Critical Parts Destroyed 1 | . . . 1 Critical Strikes 4 | . 1 . 3 Burn 1 | . . . 1 Corrupt 1 | . 1 . . Smash 2 | . . . 2 Melee Attacks 32 | . 2 2 28 Impact 24 | . . . 24 Slashing 8 | . 2 2 4 Piercing . | . . . . Sneak Attacks 10 | . 1 1 8 Combat Hostiles . | . . . . Follow-up Attacks . | . . . . Damage Inflicted 5161 | 38 1046 380 3697 Guns 2083 | 38 945 237 863 Cannons 490 | . . . 490 Explosions 1375 | . . 72 1303 Melee 1186 | . 74 71 1041 Ramming 27 | . 27 . . Kinetic 757 | 14 386 159 198 Thermal 1477 | 24 454 . 999 Explosive 575 | . . 72 503 Electromagnetic 1139 | . 105 78 956 Impact 886 | . . . 886 Slashing 300 | . 74 71 155 Piercing . | . . . . Highest Corruption 2 | . . . 2 Average Corruption 1 | . . . 1 Corruption Purged . | . . . . Corruption Blocked . | . . . . Effects 7 | . . . 7 Message Errors 5 | . . . 5 Matter Fused 1 | . . . 1 Heat Flow Errors 1 | . . . 1 Overload Shots . | . . . . Overflow Damage 306 | . . . 306 Projectiles 12 | . . . 12 Explosions 13 | . . . 13 Melee 281 | . . . 281 Knockbacks 2 | . . . 2 Impact 2 | . . . 2 Kinetic . | . . . . Secondary . | . . . . Self-Inflicted Damage 202 | . . . 202 Shots 9 | . . . 9 Rammed 3 | . 3 . . Targets Rammed 4 | . 4 . . Kicked 1 | . 1 . . Crushed . | . . . . Highest Temperature 207 | 18 207 18 198 Average Temperature 57 | 10 61 10 56 Received Heat Transfer 939 | . 228 36 675 Siege Activations . | . . . . Robots Corrupted 1 | . . . 1 Combat Hostiles 1 | . . . 1 Parts Fried 15 | . 1 . 14 Impact Corruptions 9 | . . . 9 Robots Melted . | . . . . Combat Hostiles . | . . . . Parts Melted 4 | 1 1 . 2 Heat Transferred 3358 | 74 1221 . 2063 Parts Sabotaged . | . . . . Parts Stolen . | . . . . Parts Stripped . | . . . . Power Chain Reactions 8 | . . . 8 Alert | -11 -10 -10 -9 ------- Run | Yrd Mat Min Mat Peak Influence 663 | 5 293 170 663 Initial 3 | . 3 1 . Average 188 | 1 71 66 302 Maximum Alert Level 2 | . 1 . 2 Low Security (%) 64 | 100 95 100 33 Level 1 24 | . 4 . 43 Level 2 11 | . . . 22 Level 3 . | . . . . Level 4 . | . . . . Level 5 . | . . . . High Security . | . . . . Max Security . | . . . . Squads Dispatched 10 | . 2 . 8 Investigation 4 | . 1 . 3 Extermination . | . . . . Reinforcement 5 | . 1 . 4 Assault 1 | . . . 1 Garrison . | . . . . Intercept . | . . . . Searches Triggered . | . . . . Construction Impeded 1 | . . . 1 Haulers Reinforced . | . . . . Active Scanning Responses . | . . . . Cargo Convoy Interrupts . | . . . . Stealth | -11 -10 -10 -9 --------- Run | Yrd Mat Min Mat Distress Signals 1 | . . . 1 Communications Jammed . | . . . . Distress Signals . | . . . . Times Spotted 67 | . 17 8 42 Peak Tracking Total 5 | . 3 3 5 Tactical Retreats 4 | . 1 . 3 Traps | -11 -10 -10 -9 ------- Run | Yrd Mat Min Mat Traps Triggered 4 | . 2 . 2 Indirectly 1 | . . . 1 Trap Hack Attempts . | . . . . Triggered . | . . . . Disarmed . | . . . . Reprogrammed 6 | . . . 6 Reused . | . . . . Traps Extracted . | . . . . Installed . | . . . . Triggered . | . . . . Machines | -11 -10 -10 -9 ---------- Run | Yrd Mat Min Mat Machines Disabled 7 | . . . 7 Max in Single Turn 2 | . . . 2 Machines Repaired . | . . . . Machines Dismantled . | . . . . Machines Sabotaged . | . . . . Overloaded Fab Kills . | . . . . Hacking | -11 -10 -10 -9 --------- Run | Yrd Mat Min Mat Machines Accessed 4 | . 1 . 3 Terminals 4 | . 1 . 3 Fabricators . | . . . . Repair Stations . | . . . . Recycling Units . | . . . . Scanalyzers . | . . . . Garrison Access . | . . . . Total Hacks 15 | . 2 . 13 Successful 9 | . 2 . 7 Failed 6 | . . . 6 Catastrophic 2 | . . . 2 Database Lockouts . | . . . . Manual 6 | . 1 . 5 Terminals 15 | . 2 . 13 Fabricators . | . . . . Repair Stations . | . . . . Recycling Units . | . . . . Scanalyzers . | . . . . Garrison Access . | . . . . Terminal Hacks 9 | . 2 . 7 Record 1 | . . . 1 Alert Level 1 | . . . 1 Locate Traps 1 | . . . 1 Reprogram Traps 1 | . . . 1 Patrol Status 1 | . . . 1 Transport Status 1 | . . . 1 Investigation Status 1 | . . . 1 Hauler Manifests 1 | . 1 . . Zone Layout 1 | . 1 . . Fabricator Hacks . | . . . . Repair Station Hacks . | . . . . Recycling Unit Hacks . | . . . . Scanalyzer . | . . . . Garrison Access Hacks . | . . . . Unauthorized Hacks . | . . . . Terminals . | . . . . Fabricators . | . . . . Repair Stations . | . . . . Recycling Units . | . . . . Scanalyzers . | . . . . Garrison Access . | . . . . Data Cores Recovered 1 | . . . 1 Used 1 | . . . 1 Hacking Detections 3 | . . . 3 Full Trace Events 3 | . . . 3 Feedback Events . | . . . . Feedback Blocked . | . . . . Robot Schematics Acquired . | . . . . Robots Built . | . . . . Authchips . | . . . . Time . | . . . . Total Robot Build Rating . | . . . . Part Schematics Acquired . | . . . . Parts Built . | . . . . Authchips . | . . . . Time . | . . . . Total Part Build Rating . | . . . . Parts Repaired . | . . . . Time . | . . . . Parts Recycled . | . . . . Recycled Matter . | . . . . Retrieved Matter . | . . . . Retrieved Components . | . . . . Parts Scanalyzed . | . . . . Part Schematics Acquired . | . . . . Parts Damaged . | . . . . Bothacking | -11 -10 -10 -9 ------------ Run | Yrd Mat Min Mat Used RIF Installer . | . . . . Robots Hacked . | . . . . Non-combat . | . . . . Combat . | . . . . Robot Hacks Applied . | . . . . Relay Couplers Released . | . . . . Fabnet Peak Effective % . | . . . . Robots Rewired . | . . . . Allies Hacked . | . . . . Hacks Repelled . | . . . . Allies | -11 -10 -10 -9 -------- Run | Yrd Mat Min Mat Total Allies . | . . . . Largest Group . | . . . . Highest-Rated Group . | . . . . Highest-Rated Ally . | . . . . Total Orders . | . . . . Ally Attacks . | . . . . Total Damage . | . . . . Kills . | . . . . Allies Corrupted . | . . . . Allies Melted . | . . . . Intel | -11 -10 -10 -9 ------- Run | Yrd Mat Min Mat Robot Analysis Total . | . . . . Derelict Logs Recovered . | . . . . Drone Launches . | . . . . Drone Recoveries . | . . . . Exploration | -11 -10 -10 -9 ------------- Run | Yrd Mat Min Mat Turns Passed 3978 | 88 1434 403 2053 Spaces Moved 2273 | 46 922 266 1039 Core 10 | 6 . . 4 Treads 164 | 40 124 . . Legs 2092 | . 796 266 1030 Wheels . | . . . . Hover . | . . . . Flight 7 | . 2 . 5 Fastest Speed 37 | 50 37 120 107 Average Speed 136 | 145 125 120 149 Slowest Speed 450 | 160 160 120 450 Overloaded Moves . | . . . . Propulsion Burnouts . | . . . . Robots Hopped . | . . . . Cave-ins Triggered . | . . . . Exploration Rate (%) 52 | 4 93 49 64 Regions Visited 3 Branch Regions 1 Pre-discovered Areas . | . . . . Known Exits Taken . | . . . . Unknown Exits Taken 3 | 1 1 1 . Scrap Searched 1 | . . 1 . Spaces Dug . | . . . . Terrain Destroyed 86 | . . 34 52 Melee . | . . . . Projectile . | . . . . AOE 86 | . . 34 52 Terrain Rammed . | . . . . Walls Destroyed . | . . . . Machines Disabled . | . . . . Actions | -11 -10 -10 -9 --------- Run | Yrd Mat Min Mat Total 2788 | 63 1085 312 1328 Wait 5 | . . . 5 Move 2270 | 45 921 265 1039 Hop . | . . . . Pick Up 87 | 10 34 5 38 Fast Attach 2 | . 1 . 1 Attach 29 | 6 3 2 18 Detach 4 | . . . 4 Swap 49 | . 18 2 29 Drop 60 | . 33 2 25 Fire 246 | 2 69 34 141 Melee 32 | . 2 2 28 Ram . | . . . . Kick 1 | . 1 . . Crush 3 | . 3 . . Escape Stasis . | . . . . Rewire . | . . . . Trap . | . . . . Miscellaneous . | . . . . Route ------- -11/Scrapyard -10/Materials (discovered 5 exits: *Mat x3 / [*Min x2]) -10/Mines -9/Materials (discovered 2 exits: [*Mat] / *Min) History --------- Turn | Location | Event 30 | -11/Scrapyard | Discovered new exit (range 16) 89 | -11/Scrapyard | Entered Materials 315 | -10/Materials | Build established: Mutant 591 | -10/Materials | Discovered new exit (range 15) 680 | -10/Materials | Discovered new exit (range 9) 828 | -10/Materials | Discovered new exit (range 16) 895 | -10/Materials | Discovered new exit (range 7) 1433 | -10/Materials | Discovered new exit (range 8) 1523 | -10/Materials | Entered Mines 1527 | -10/Mines | Joined a pair of Derelicts in attacking an 0b10 outpost 1641 | -10/Mines | Discovered new exit (range 16) 1653 | -10/Mines | Core integrity fell below 50% 1837 | -10/Mines | Assembled infested the area 1926 | -10/Mines | Entered Materials 1926 | -9/Materials | Evolved 2 slots: Utility x2 2080 | -9/Materials | Lost 4 parts (1p1n1u1w) 2379 | -9/Materials | Discovered new exit (range 14) 2740 | -9/Materials | Identified exit to Mines 2805 | -9/Materials | Build established: Scavenger-Mutant 3451 | -9/Materials | Core integrity fell below 50% 3727 | -9/Materials | Core integrity fell below 20% 3881 | -9/Materials | Build established: Mutant 3907 | -9/Materials | Discovered new exit (range 16) 3926 | -9/Materials | First assault squad dispatched 3979 | -9/Materials | Destroyed by Y-45 Defender with Heavy Assault Rifle Last Messages --------------- 03928_ Door malfunctions. 03932_ Imp. Aluminum Leg destroyed. 03935_ Y-45 Defender misfires. 03943_ Critical hit (Burn: +37). 03945_ Destroyed Heat Sink. 03945_ Y-45 Defender system corrupted by crushing effect. 03946_ Y-45 Defender system terminally corrupted. 03946_ Heat Sink fried. 03946_ Lgt. Armor Plating fried. 03952_ Critical hit (Destroy). 03952_ Imp. Aluminum Leg destroyed. 03953_ Acquired 28 matter. 03955_ EMP Blaster destroyed. 03958_ BR#Q=HY|G<4VD/BJG 8HXV9 PAL3W 03961_ Cooling System destroyed. 03967_ Hvy. Ion Engine destroyed. 03971_ Y-45 Defender suffers critical hit (Smash). 03971_ Destroyed Beam Rifle. 03971_ Y-45 Defender system corrupted by crushing effect. 03977_ Y-45 Defender misfires. Map ----- +----------------------------------------------------+ | "S #????????????????????????????????????? | | "" #????????????????????????????????????? | | #????????????????????????????????????? | | " #????????????????????????????????????? | | " #????????????????????????????????????? | | " #????????????????????????????????????? | | #????????????????????????????????????? | | #######????????????????????????????????????? | | ###########????????????????????????????????? | | # = #????????????????????????????????? | | # #????????????????????????????????? | | # """ #????????????????????????????????? | | # """""#????????????????????????????????? | | # """""#????????????????????????????????? | | # """""#???????# ####???????????????????? | | + """ #??????? ???????????????????? | | # #??????"" ""????????????????????? | | ###########??# """"" "Y????????????????????? | | #?# #???# """"" ?????????????????????? | | ### #???? """"" ?????????????????????? | | #????? """ ??????????????????????? | | ### #??????? ??????????????????????? | | #?# #?########/########+####??????????? | | ##?### ###?# % #??????????? | | ?????# #???# ##### = < #??????????? | | ?????# ##### #???# @Y #??????????? | | ?????# #???#########/######??????????? | | ?????# #???????????? ??????????????? | | ?????# #????????????? "?????????????? | | ?????# #????????????? ""????????????? | | ?????# #?????????????? """ ??????????? | | ?????#########?????????????? """???????????? | | ????????????????????????????? ???????????? | | ?????????????????????????????###???????????? | | | | | | | | | | | | | | | | | | | | | | | | | | | | | | | | | +----------------------------------------------------+ Best States ------------- Heat Dissipation 50 Energy Generation 14 Energy Capacity 280 Matter Stores 300 Matter Capacity 300 Sight Range 16 Robot Scan Range 14 Terrain Scan Density 10 Armor Coverage 150 Core Shielding 20 Propulsion Shielding 33 Utility Shielding 33 Weapon Shielding 33 Evasion (%) 62 Targeting Accuracy 5 Recoil Reduction 2 Item Schematics ----------------- None Robot Schematics ------------------ None Fabricated ------------ Nothing Alien Tech Used ----------------- None Achievements -------------- Dynamic Key Shopping List Significant Disruption Challenges ------------ None Game ------ Seed DamperGunInterrupter Manual? 0 Play Time 00:51:20 Cumulative 3.5 hours Start 2024.03.31 @ 15:09:53 End 2024.03.31 @ 16:23:35 Sessions 5 Manual Loads 0 Difficulty Rogue Special Mode None Game No. 9 Rogue 9 Adventurer 0 Explorer 0 Win Type - Total 0 Types 0/0/0/0/0/0/0/0/0 Lore% 1 Gallery% 9 Achievement% 8 Wizard Run 0 Options --------- Layout 0 ASCII 0 Keyboard 0 Movement Mouse Keybinds 0 Fullscreen 1 Font 24/Smallcaps Map View 76x50 Zoom Use 0% Tactical HUD 1 Map Filters NONE Filters NONE Steam 1 RUN: 7a2b595e-7040-427b-a546-d7f2165cc3dd